bitfinex/quotes_ETHUSD_20220309
["timestamp","ask_amount","ask_price","bid_price","bid_amount"]
[1646837358698,3.22847771,2736.6,2736.2,0.94114636]
[1646837358898,6.22847771,2736.6,2736.2,0.94114636]
[1646837359294,2.78347771,2736.6,2736.2,0.94114636]
[1646837359594,2.78347771,2736.6,2736.2,1.85340778]
[1646837359995,2.78347771,2736.6,2736.2,2.15340778]
[1646837360699,0.91437,2736.8,2736.2,2.21800778]
[1646837360898,0.91437,2736.8,2736.2,2.51800778]
[1646837361096,0.91437,2736.8,2736.3,0.00399344]
[1646837361501,0.95451786,2737.6,2736.3,3.86859344]
[1646837361728,0.91391,2737.2,2736.6,0.3646]
[1646837361931,0.91391,2737.2,2736.6,1.27846]
[1646837362131,0.91391,2737.2,2736.6,0.6646]
[1646837362633,0.91391,2737.2,2736.6,0.3646]
[1646837362834,0.91384,2737.4,2736.7,0.3646]
[1646837363031,1.83155107,2737.9,2736.9,0.3646]
[1646837363230,1.82756,2737.9,2736.9,0.3646]
[1646837363429,1.83155126,2737.9,2736.9,0.3646]
[1646837363630,1.83155126,2737.9,2737.2,0.91438508]
[1646837364033,1.83155126,2737.9,2737.3,0.91382]
[1646837364235,0.91373,2737.8,2737.3,0.91382]
[1646837364436,0.91373,2737.8,2737.3,5.07842]
[1646837364637,0.00399162,2737.9,2737.5,0.3646]
[1646837364838,0.00399162,2737.9,2737.4,3.5]
[1646837365034,0.00399162,2737.9,2737.3,0.3]
[1646837365233,0.00399162,2737.9,2737.3,0.3646]
[1646837365492,0.91353,2738.4,2737.3,0.3646]
[1646837365680,0.91353,2738.4,2737.4,0.3646]
[1646837365881,0.0037368,2737.9,2737.4,2.4916479]
[1646837366077,0.0037368,2737.9,2737.6,2.19174]
[1646837366479,0.0037368,2737.9,2737.6,1.82714]
[1646837366783,0.91361,2738.2,2737.6,1.82714]
[1646837366984,0.00373689,2737.9,2737.6,2.7406686]
[1646837367183,0.00373689,2737.9,2737.7,0.91351]
[1646837367983,1.82716,2738.5,2737.7,1.21351]
[1646837368184,1.82716,2738.5,2738.2,1.22938226]
[1646837368383,1.82716,2738.5,2738.2,2.14292226]
[1646837368585,0.91349,2738.6,2738.2,2.14292226]
[1646837369426,0.00373644,2738.5,2738.2,2.14292226]
[1646837370233,0.91349,2738.6,2738.2,0.91354]
[1646837370632,0.0037533,2738.5,2738.2,0.91354]
[1646837370832,1.39063962,2738.5,2737.7,1.82753]
[1646837371033,0.91384,2738.3,2737.7,1.82753]
[1646837371231,0.49820227,2738.2,2737.7,1.82753]
[1646837371431,0.49820227,2738.2,2736.9,3.65467]
[1646837371432,0.05035516,2738.1,2736.9,3.65467]
[1646837371639,0.05035516,2738.1,2737.0,0.9141]
[1646837371640,0.02845,2737.3,2737.0,0.9141]
[1646837371833,0.02845,2737.3,2736.2,4.07372636]
[1646837371834,0.0493733,2737.2,2736.5,1.84339304]
[1646837372031,0.4943733,2737.2,2736.5,1.84339304]
[1646837372232,0.4943733,2737.2,2736.5,2.85777007]
[1646837372233,1.35919,2737.2,2736.5,2.85777007]
[1646837372635,1.35919,2737.2,2736.8,0.91419]
[1646837372636,0.91419,2737.2,2736.8,0.91419]
[1646837373283,0.942196,2737.2,2736.8,0.91419]
[1646837373482,0.445,2737.1,2736.8,0.91419]
[1646837373682,1.4528,2737.1,2736.8,0.91419]
[1646837374789,3.54338165,2737.0,2736.4,0.01877972]
[1646837374986,0.91416,2736.9,2736.4,0.01877972]
[1646837375190,0.91416,2736.9,2736.3,7.36]
[1646837375191,1.35916,2736.9,2736.3,7.36]
[1646837375384,0.91416,2736.9,2736.3,7.7246]
[1646837375586,0.91416,2736.9,2736.5,1.82837]
[1646837375786,0.91416,2736.9,2736.6,1.22208578]
[1646837376389,0.91397,2737.2,2736.6,1.22208578]
[1646837376594,0.9808,2737.8,2736.6,2.80079578]
[1646837376844,0.0317547,2737.9,2736.6,2.73619578]
[1646837377447,0.91378,2737.7,2736.6,2.73619578]
[1646837377644,1.8277,2737.8,2737.7,0.70012313]
[1646837377645,2.8277,2737.8,2737.7,0.70012313]
[1646837377852,0.445,2737.6,2737.2,0.91406]
[1646837378047,3.99772552,2737.5,2737.2,0.91406]
[1646837378244,0.05021296,2737.4,2737.2,0.91406]
[1646837378446,0.445,2737.3,2737.2,0.91406]
[1646837378648,0.445,2737.3,2736.3,1.1512]
[1646837378649,0.04509334,2737.2,2736.3,1.1512]
[1646837378947,0.04509334,2737.2,2735.5,2.7422705]
[1646837378948,0.028403,2736.5,2736.4,0.00375627]
[1646837379148,1.348303,2736.5,2736.4,0.00375627]
[1646837379747,3.177013,2736.5,2736.4,0.00375627]
[1646837379948,3.177013,2736.5,2736.2,0.94121636]
[1646837380357,3.177013,2736.5,2736.3,0.00366884]
[1646837380593,6.0,2736.4,2736.1,2.74235]
[1646837380794,6.0,2736.4,2736.1,0.17039745]
[1646837380795,0.445,2736.3,2736.1,0.17039745]
[1646837380987,0.9144,2736.2,2735.9,0.01467758]
[1646837381186,0.9144,2736.2,2735.5,0.00135073]
[1646837381187,0.445,2736.1,2735.5,0.00135073]
[1646837381392,5.32899,2736.0,2735.3,3.65693]
[1646837381587,0.445,2735.9,2735.4,2.23043957]
[1646837381789,1.2752,2735.9,2735.4,0.91451]
[1646837382188,0.9808,2735.8,2735.4,0.91451]
[1646837382388,0.445,2735.7,2735.4,0.91451]
[1646837382991,0.445,2735.7,2735.4,1.21451]
[1646837383188,0.445,2735.7,2735.4,0.91451]
[1646837383388,1.82899,2736.0,2735.4,2.1289172]
[1646837383787,1.82899,2736.0,2735.5,1.31661445]
[1646837384430,0.445,2735.9,2735.5,1.31661445]
[1646837384635,1.4125,2735.9,2735.5,1.31661445]
[1646837384833,0.91448,2735.8,2735.5,1.31661445]
[1646837385034,1.35948,2735.8,2735.6,0.00399598]
[1646837385838,3.0,2736.1,2735.6,0.00399598]
[1646837385839,0.91433,2736.1,2735.6,0.00399598]
[1646837386037,2.27361,2736.4,2736.0,1.16155865]
[1646837386038,1.82861,2736.4,2736.0,1.16155865]
[1646837386237,1.82861,2736.4,2736.0,1.46155865]
[1646837386637,0.49457251,2737.2,2736.2,0.3646]
[1646837386840,0.91403,2737.0,2736.2,0.3646]
[1646837387037,2.0,2737.5,2736.5,0.3646]
[1646837387038,5.5,2737.5,2736.5,0.3646]
[1646837387236,5.5,2737.5,2736.5,0.3]
[1646837387237,2.0,2737.5,2736.5,0.3]
[1646837387438,2.05349065,2737.5,2736.5,0.3]
[1646837387637,2.49849065,2737.5,2736.7,0.9139718]
[1646837387837,2.445,2737.5,2736.7,0.9139718]
[1646837388094,0.91388,2737.4,2736.9,0.91385]
[1646837388290,0.91388,2737.4,2736.9,1.21385]
[1646837388483,0.13819997,2737.8,2736.9,1.21385]
[1646837388484,0.13819997,2737.8,2736.9,0.3]
[1646837388688,0.00380932,2737.6,2736.9,1.2138691]
[1646837388889,0.91364,2738.1,2737.2,0.91376]
[1646837389095,0.0533906,2738.6,2737.3,0.3646]
[1646837389096,0.4983906,2738.6,2737.3,0.3646]
[1646837389288,0.4983906,2738.6,2737.6,0.91358]
[1646837389289,0.97931383,2738.5,2737.6,0.91358]
[1646837389488,0.97931383,2738.5,2737.6,1.57818]
[1646837389689,0.97931383,2738.5,2737.6,0.6646]
[1646837389890,0.97931383,2738.5,2737.6,1.5781745]
[1646837390191,0.9808,2738.7,2737.7,1.82712]
[1646837390491,0.91356,2738.3,2737.8,0.0873362]
[1646837390690,0.91356,2738.3,2737.8,1.0008962]
[1646837390894,0.91356,2738.3,2738.0,0.07586664]
[1646837391942,0.028107,2738.2,2737.8,0.3]
[1646837392342,0.028107,2738.2,2737.7,1.89644869]
[1646837392542,0.489857,2738.2,2737.7,1.82712]
[1646837392743,0.942045,2737.9,2737.7,1.82712]
[1646837393548,0.94603873,2737.9,2737.7,1.82712]
[1646837393948,0.91774373,2737.9,2737.7,1.82712]
[1646837394344,0.91375,2737.9,2737.7,1.82712]
[1646837394744,0.91774373,2737.9,2737.7,1.82712]
[1646837395148,0.91774373,2737.9,2737.7,2.12712]
[1646837395349,0.00399373,2737.9,2737.7,3.41294622]
[1646837395580,0.93332903,2738.2,2737.7,3.41294622]
[1646837395982,0.00399373,2737.9,2737.7,3.11294622]
[1646837396186,0.00399373,2737.9,2737.7,2.81908134]
[1646837396382,0.00399373,2737.9,2737.7,3.11908134]
[1646837396585,0.91769373,2737.9,2737.7,2.20544574]
[1646837396789,0.01969903,2738.2,2737.8,0.07249865]
[1646837397187,0.00399373,2737.9,2737.8,0.07249865]
[1646837397685,0.01969903,2738.2,2737.8,0.07249865]
[1646837397686,0.01969903,2738.2,2738.0,0.00310337]
[1646837397887,0.01969903,2738.2,2738.0,0.99464277]
[1646837398088,0.04775803,2738.2,2738.0,0.00310337]
[1646837398487,0.09481269,2738.2,2738.0,0.00310337]
[1646837398888,0.09481269,2738.2,2738.0,0.91684337]
[1646837399339,0.04938628,2738.1,2738.0,0.91684337]
[1646837399542,0.04938628,2738.1,2738.0,0.00310337]
[1646837399543,0.66145619,2738.1,2738.0,0.00310337]
[1646837399741,1.61556023,2738.1,2738.0,0.00310337]
[1646837400745,0.61206991,2738.1,2738.0,0.00310337]
[1646837400945,0.00151307,2738.2,2738.0,0.91660337]
[1646837401346,0.00151307,2738.2,2738.1,0.07553688]
[1646837401943,0.00550653,2738.2,2738.1,0.07553688]
[1646837402248,0.00550653,2738.2,2738.1,1.90252688]
[1646837402249,0.00399346,2738.2,2738.1,1.90252688]
[1646837402444,0.00399346,2738.2,2738.1,1.82699]
[1646837403288,0.00399341,2738.3,2738.1,1.82699]
[1646837403691,0.91756341,2738.3,2738.1,1.82699]
[1646837403892,0.00399341,2738.3,2738.1,1.82699]
[1646837404089,1.82721,2738.5,2738.1,1.82699]
[1646837404490,0.00399336,2738.3,2738.1,1.82699]
[1646837405092,0.0196852,2738.2,2738.1,1.82699]
[1646837407139,0.0196852,2738.2,2738.0,0.91658337]
[1646837407140,3.5488532,2738.2,2738.0,0.91658337]
[1646837407338,5.04381702,2738.2,2738.0,0.91658337]
[1646837407538,3.7177352,2738.1,2738.0,0.00310337]
[1646837407739,0.04882196,2737.9,2737.4,3.65384]
[1646837407941,1.35893,2737.8,2737.4,3.65384]
[1646837408340,3.5,2737.7,2737.4,3.65384]
[1646837408538,3.945,2737.7,2737.4,3.65384]
[1646837408740,3.945,2737.7,2737.3,0.91395]
[1646837408741,0.0454504,2737.6,2737.3,0.91395]
[1646837408941,0.445,2737.5,2737.3,0.91395]
[1646837409144,1.445,2737.5,2737.3,0.91395]
[1646837409540,3.5,2737.4,2737.1,0.00367992]
[1646837409741,0.028269,2737.2,2737.1,0.00367992]
[1646837410343,0.9141,2737.3,2737.1,0.00749728]
[1646837410589,0.028216,2737.2,2737.1,0.00381736]
[1646837410789,0.0724098,2737.2,2737.1,0.00381736]
[1646837411189,1.9004498,2737.2,2737.0,1.82798]
[1646837411390,0.942226,2737.2,2737.0,1.82798]
[1646837411590,0.942226,2737.2,2737.0,1.83179745]
[1646837411800,0.91401,2737.2,2737.0,1.83179745]
[1646837412389,0.445,2737.5,2737.0,1.82798]
[1646837412592,1.35885,2737.5,2737.0,1.82798]
[1646837412790,3.5,2737.4,2737.0,1.83197476]
[1646837412990,0.445,2737.5,2737.0,1.83197476]
[1646837413190,1.028316,2737.4,2737.0,1.83197476]
[1646837413389,1.0,2737.4,2737.0,1.83197476]
[1646837413592,0.028295,2737.3,2737.0,0.00399476]
[1646837414095,0.445,2737.5,2737.1,0.00386584]
[1646837414339,0.028001,2737.4,2737.1,0.00386584]
[1646837414538,0.445,2737.7,2737.2,1.82773]
[1646837414741,0.029038,2737.3,2737.2,2.12773]
[1646837414942,0.028492,2737.5,2737.2,2.12773]
[1646837415143,4.74189,2738.0,2737.2,2.12773]
[1646837415144,0.0432562,2738.2,2737.3,0.08210878]
[1646837415344,0.03014471,2738.0,2737.3,0.08210878]
[1646837415545,0.16696956,2737.9,2737.3,0.08210878]
[1646837415744,0.00150971,2738.0,2737.3,0.08210878]
[1646837415745,0.16696956,2737.8,2737.3,0.08210878]
[1646837415945,0.02959871,2738.0,2737.3,0.08210878]
[1646837416244,0.16708594,2737.9,2737.4,0.91379]
[1646837416645,0.16708594,2737.9,2737.4,1.21379]
[1646837416850,0.91379,2737.7,2737.4,1.21379]
[1646837417247,0.91379,2737.7,2737.6,0.08500071]
[1646837417646,1.82758,2737.9,2737.7,0.69995693]
[1646837417845,1.82758,2737.9,2737.7,1.61366693]
[1646837418284,0.00399076,2738.0,2737.7,1.91366693]
[1646837418489,2.86232894,2738.5,2737.8,0.08926092]
[1646837418490,0.91359,2738.2,2737.8,0.08926092]
[1646837418683,0.18399608,2738.1,2737.8,0.08926092]
[1646837418890,0.18399608,2738.1,2737.8,1.91638092]
[1646837419089,0.18399608,2738.1,2737.8,2.21638092]
[1646837419289,0.18399608,2738.1,2737.9,0.3]
[1646837420092,0.00398876,2738.1,2738.0,0.08071514]
[1646837420297,0.18391176,2738.4,2738.1,4.5]
[1646837420493,0.18391176,2738.4,2738.2,0.44588252]
[1646837420693,0.85416505,2739.1,2738.2,0.44588252]
[1646837420892,5.53918313,2739.4,2738.4,0.94267369]
[1646837420893,0.18381736,2739.0,2738.4,0.94267369]
[1646837421095,0.91341,2738.8,2738.5,0.06921116]
[1646837421292,0.18381736,2738.7,2738.4,0.9133619]
[1646837421593,0.18381736,2738.7,2738.5,0.08038506]
[1646837422040,0.028001,2739.2,2738.5,0.08038506]
[1646837422237,0.18373096,2739.1,2738.6,0.08085355]
[1646837422438,0.18373096,2739.0,2738.6,3.12038875]
[1646837422638,0.67025329,2739.5,2738.6,3.12038875]
[1646837422639,0.18373096,2738.9,2738.8,0.0704716]
[1646837422837,5.17025329,2739.6,2738.8,0.0704716]
[1646837422838,1.0,2739.6,2738.8,0.0704716]
[1646837423040,0.18353818,2739.5,2738.8,0.0704716]
[1646837423240,0.18353818,2739.5,2738.9,0.43420905]
[1646837423740,0.18353818,2739.5,2738.9,0.9130283]
[1646837423941,0.67025329,2739.9,2739.1,0.98818011]
[1646837423942,0.18353818,2739.4,2739.1,0.98818011]
[1646837424139,0.18353818,2739.3,2739.1,2.81437861]
[1646837424339,0.20363121,2739.2,2739.1,2.81437861]
[1646837424644,0.20363121,2739.2,2739.1,1.90126861]
[1646837424840,0.20363121,2739.2,2739.0,2.12622]
[1646837425039,0.20363121,2739.2,2739.0,1.82622]
[1646837425040,0.18353818,2739.1,2739.0,1.82622]
[1646837426894,0.18353818,2739.1,2739.0,2.12622]
[1646837427092,0.02009303,2739.2,2739.0,2.12622]
[1646837427296,0.02009303,2739.2,2739.1,0.3]
[1646837429336,0.028001,2739.7,2739.2,0.9131126]
[1646837429638,0.028001,2739.7,2739.3,0.91312]
[1646837429639,0.18361789,2739.6,2739.3,0.91312]
[1646837430036,0.18361789,2739.6,2739.3,1.21312]
[1646837430436,0.18361789,2739.6,2739.3,0.91312]
[1646837430637,0.18361789,2739.6,2739.3,1.21312]
[1646837430638,0.91316,2739.5,2739.3,1.21312]
[1646837430836,0.18361789,2739.4,2739.3,1.21312]
[1646837431041,0.18361789,2739.4,2739.3,0.91312]
[1646837431241,0.18361789,2739.4,2739.3,1.21312]
[1646837431640,0.18361789,2739.4,2739.3,0.91312]
[1646837431863,0.18361789,2739.4,2739.3,1.21312]
[1646837432242,0.18361789,2739.4,2739.0,1.82622]
[1646837432446,4.35387118,2739.4,2739.0,1.82622]
[1646837432640,0.029168,2739.1,2739.0,1.82622]
[1646837432841,0.21278589,2739.1,2739.0,1.82622]
[1646837433387,0.21278589,2739.1,2739.0,2.12622]
[1646837433388,0.18361789,2739.1,2739.0,2.12622]
[1646837433584,0.00382296,2739.3,2739.0,2.12622]
[1646837433990,0.00382296,2739.3,2739.1,0.3]
[1646837434286,0.00382296,2739.3,2739.0,2.12622]
[1646837434486,0.02022891,2739.6,2739.0,2.12622]
[1646837434685,0.00373439,2739.3,2739.0,2.12622]
[1646837435291,0.00373439,2739.3,2739.1,0.9131242]
[1646837435492,0.91318,2739.4,2739.1,0.9131242]
[1646837435692,0.00373439,2739.3,2739.1,0.9131242]
[1646837435992,0.18767559,2739.3,2739.1,0.9131242]
[1646837436190,0.18767559,2739.3,2739.0,1.82622]
[1646837436592,0.1839412,2739.3,2739.0,1.82622]
[1646837436835,0.00373435,2739.3,2739.0,1.82622]
[1646837437136,0.00373435,2739.3,2739.2,0.07381679]
[1646837437838,0.91318,2739.4,2739.2,0.05460817]
[1646837438034,0.91692748,2739.4,2739.2,0.05460817]
[1646837438335,0.21269146,2739.3,2739.0,1.82622]
[1646837438536,0.18352346,2739.2,2739.0,1.82622]
[1646837439335,0.18727106,2739.2,2739.0,1.82622]
[1646837439537,0.029168,2739.1,2739.0,1.82622]
[1646837439734,0.2540885,2739.1,2739.0,1.82622]
[1646837440998,0.21269146,2739.1,2739.0,1.82622]
[1646837441200,0.18352346,2739.1,2739.0,1.82622]
[1646837441404,0.1872711,2739.2,2739.0,1.82622]
[1646837441601,0.18352346,2739.1,2739.0,1.82622]
[1646837441802,0.21269146,2739.1,2739.0,1.82622]
[1646837441999,0.21269146,2739.1,2738.9,1.82632]
[1646837442198,0.22998695,2739.0,2738.9,1.82020979]
[1646837442398,4.17498695,2739.0,2738.9,1.82020979]
[1646837442599,0.67498695,2739.0,2738.9,1.82020979]
[1646837442798,0.49146349,2739.0,2738.9,1.82020979]
[1646837443005,0.67502551,2739.0,2738.9,1.82020979]
[1646837445649,0.23002551,2739.0,2738.9,1.82020979]
[1646837447349,0.18356202,2739.0,2738.9,1.82020979]
[1646837447548,0.18356202,2739.0,2738.9,1.80840979]
[1646837447848,0.18323827,2739.0,2738.9,1.80840979]
[1646837448087,0.02379221,2739.1,2738.9,1.80840979]
[1646837448585,0.02379221,2739.1,2738.9,2.72152909]
[1646837448586,0.02004773,2739.1,2738.9,2.72152909]
[1646837449790,0.91312,2739.6,2738.9,2.72152909]
[1646837450091,0.18316648,2739.5,2738.9,2.72152909]
[1646837450291,0.00377954,2739.1,2738.9,2.72152909]
[1646837450491,0.00377954,2739.1,2738.9,1.80840979]
[1646837451293,0.02063668,2739.7,2738.9,2.10840979]
[1646837451497,0.02063668,2739.7,2739.0,1.67069028]
[1646837451498,0.00377954,2739.1,2739.0,1.67069028]
[1646837451760,0.028001,2740.2,2739.2,0.3646]
[1646837451945,0.69943211,2740.8,2739.6,0.3646]
[1646837451946,0.67025329,2740.8,2739.6,0.3646]
[1646837452144,1.67025329,2741.0,2740.7,0.92567307]
[1646837452349,0.67025329,2741.1,2739.9,0.3646]
[1646837452543,0.029168,2740.6,2740.1,0.3646]
[1646837452745,3.028001,2740.9,2740.1,0.6646]
[1646837453342,3.028001,2740.9,2740.4,1.10507747]
[1646837453547,0.028451,2740.8,2740.5,0.9125411]
[1646837454143,0.028451,2740.8,2740.5,3.6501911]
[1646837454544,1.63400171,2741.2,2740.5,3.6501911]
[1646837454750,0.028001,2741.0,2740.5,3.6501911]
[1646837454944,0.00149882,2740.8,2740.5,3.6501911]
[1646837455498,0.00149882,2740.8,2740.6,0.91257]
[1646837455700,0.029168,2740.7,2740.6,0.91257]
[1646837456405,0.029168,2740.7,2740.1,1.8254168]
[1646837456406,1.0,2740.6,2740.1,1.82575]
[1646837456605,1.0,2740.6,2739.7,2.9585952]
[1646837456606,0.029168,2740.2,2739.7,1.1329]
[1646837456804,0.028451,2740.0,2739.7,1.1329]
[1646837457005,0.028001,2740.3,2739.3,9.1249]
[1646837457405,0.028001,2740.3,2739.3,9.4895]
[1646837457605,0.03259379,2740.1,2739.9,1.8255719]
[1646837457811,0.00398079,2740.1,2739.9,1.38752045]
[1646837458007,0.00398079,2740.1,2739.9,3.1742057]
[1646837458203,0.00398079,2740.1,2739.9,3.4742057]
[1646837458406,0.05153005,2740.5,2739.9,3.4742057]
[1646837458606,0.00398079,2740.1,2739.9,10.0585085]
[1646837458811,0.00398079,2740.1,2739.9,6.8769257]
[1646837459254,0.67025329,2741.0,2740.1,0.3646]
[1646837459454,0.91271,2741.0,2740.4,0.9126887]
[1646837459661,0.028404,2740.9,2740.4,0.9126887]
[1646837459854,1.82533,2741.3,2740.4,1.8772887]
[1646837459855,0.6861698,2741.3,2740.4,1.8772887]
[1646837460054,0.6861698,2741.3,2740.4,2.2746887]
[1646837460253,0.01591651,2741.3,2740.4,2.2746887]
[1646837460652,0.01591651,2741.3,2740.8,1.09487897]
[1646837460856,0.67025329,2741.4,2741.0,0.91242]
[1646837461256,0.74647919,2741.5,2741.0,0.91242]
[1646837461657,0.67025329,2741.5,2741.0,0.91242]
[1646837461854,0.90098316,2741.8,2741.0,0.91242]
[1646837461855,0.67025329,2741.4,2741.0,0.91242]
[1646837462058,3.5,2741.3,2741.0,0.91242]
[1646837462258,0.67025329,2741.2,2741.0,0.91242]
[1646837462456,0.028335,2741.1,2740.9,1.82484]
[1646837462656,1.58289329,2741.2,2740.9,1.82484]
[1646837462987,0.028544,2741.0,2740.9,1.82484]
[1646837463588,0.9669327,2741.2,2740.9,1.82484]
[1646837463790,0.0542927,2741.2,2740.9,1.82484]
[1646837463995,0.00384553,2741.2,2740.9,1.82484]
[1646837464391,0.0455798,2741.4,2740.9,1.82484]
[1646837464590,0.00377702,2741.2,2740.9,1.82484]
[1646837464791,0.00377702,2741.2,2741.0,0.99423423]
[1646837465596,0.028001,2741.6,2741.1,0.9124161]
[1646837465996,0.940471,2741.6,2741.1,0.9124161]
[1646837466197,0.04363536,2741.5,2741.0,1.21238]
[1646837466601,0.029168,2741.1,2741.0,0.91238]
[1646837466837,0.04363536,2741.5,2741.0,0.91238]
[1646837467139,0.04363536,2741.5,2740.9,2.12484]
[1646837467140,0.028138,2741.1,2740.9,2.12484]
[1646837467337,0.028138,2741.1,2740.9,2.7373163]
[1646837467737,0.3646,2741.5,2740.9,2.7373163]
[1646837467738,0.05215794,2741.5,2740.9,2.7373163]
[1646837467937,2.49526329,2741.7,2740.9,2.7373163]
[1646837467938,0.04247773,2741.7,2741.0,2.1247237]
[1646837468338,0.00382354,2741.1,2741.0,2.1247237]
[1646837469140,0.00382354,2741.1,2741.0,3.0370837]
[1646837469537,0.04247773,2741.7,2741.0,3.0370837]
[1646837469538,0.00382349,2741.2,2741.0,3.0370837]
[1646837469737,0.00382349,2741.2,2741.0,0.91236]
[1646837469942,0.029168,2741.1,2740.9,2.12484]
[1646837470141,0.029168,2741.1,2740.9,1.82484]
[1646837470587,0.91266,2741.1,2740.6,1.82519]
[1646837470790,0.029168,2740.7,2740.1,11.0969]
[1646837470992,3.5,2741.0,2740.1,1.2481]
[1646837470993,0.0443227,2740.9,2740.1,1.2481]
[1646837471290,0.0443227,2740.9,2739.4,6.64531801]
[1646837471291,0.029168,2740.3,2739.4,6.64531801]
[1646837471496,0.029168,2740.3,2739.6,3.9397]
[1646837471497,0.028092,2740.3,2739.6,3.9397]
[1646837471693,0.04780869,2740.5,2739.6,3.9397]
[1646837471891,0.91294,2740.2,2739.6,3.9397]
[1646837472093,0.17135357,2740.1,2739.6,1.2322]
[1646837472293,0.17135357,2740.1,2739.5,1.82585]
[1646837472492,0.028331,2740.0,2739.5,1.82585]
[1646837472791,1.82614,2740.0,2739.5,1.82585]
[1646837473016,0.029168,2739.6,2739.5,1.82585]
[1646837473193,0.17152973,2739.9,2739.5,1.82585]
[1646837473194,0.04633396,2739.9,2739.5,1.82585]
[1646837473494,0.07391113,2740.2,2739.5,1.82585]
[1646837473691,0.17148806,2740.1,2739.5,1.82585]
[1646837473890,0.00360098,2740.2,2739.5,1.82585]
[1646837474090,0.1995028,2740.3,2739.6,0.3]
[1646837474347,0.91296,2740.1,2739.6,0.3]
[1646837474944,0.91296,2740.1,2739.8,0.91295]
[1646837475545,0.07842359,2740.0,2739.8,0.91295]
[1646837476746,0.05006559,2740.0,2739.8,0.91295]
[1646837477151,0.91296,2740.1,2739.8,0.91295]
[1646837477351,0.04508735,2740.2,2739.8,0.91295]
[1646837477549,0.04135194,2740.2,2739.8,0.91295]
[1646837477998,0.04508738,2740.2,2739.8,0.91295]
[1646837478192,0.00373544,2740.2,2739.9,3.34809059]
[1646837478386,0.00373544,2740.2,2740.0,0.08966612]
[1646837478587,0.91663544,2740.2,2739.9,2.10498261]
[1646837478786,0.91663544,2740.2,2739.9,1.80498261]
[1646837478787,0.94469644,2740.2,2739.9,1.80498261]
[1646837479185,0.94469168,2740.2,2739.9,2.10498261]
[1646837479387,0.00373068,2740.2,2740.0,0.08457536]
[1646837479991,3.0,2740.8,2740.0,0.08457536]
[1646837480187,0.028683,2740.6,2740.1,0.9126825]
[1646837480390,0.04811866,2740.9,2740.5,0.08249012]
[1646837480391,0.940691,2740.9,2740.5,0.08249012]
[1646837480594,0.91540642,2741.4,2740.5,0.08249012]
[1646837480595,0.028001,2741.2,2740.5,0.08249012]
[1646837480791,0.01442326,2741.4,2740.5,0.08249012]
[1646837480792,0.68467655,2741.4,2740.5,0.08249012]
[1646837480993,0.01442326,2741.4,2740.5,0.08249012]
[1646837481188,0.01442326,2741.4,2740.4,0.3]
[1646837481189,0.029168,2740.6,2740.4,0.3]
[1646837481845,0.0316077,2741.0,2740.4,0.3]
[1646837482248,0.0036067,2741.0,2740.4,0.3]
[1646837482446,0.028957,2740.8,2740.4,0.3]
[1646837482747,0.03256822,2740.8,2740.5,0.91261]
[1646837482946,0.028426,2740.7,2740.5,2.7376591]
[1646837483346,0.00361122,2740.8,2740.5,2.7376591]
[1646837483546,0.03186122,2740.8,2740.5,2.7376591]
[1646837483948,0.03228469,2740.7,2740.5,3.7040985]
[1646837484548,0.00373669,2740.7,2740.5,3.7040985]
[1646837484753,0.05297662,2740.9,2740.5,0.91261]
[1646837485051,0.029168,2740.6,2740.5,0.91261]
[1646837485697,0.04609412,2740.5,2740.1,1.82596]
[1646837485901,0.49109412,2740.5,2740.1,1.82596]
[1646837486097,0.029168,2740.2,2740.1,1.82596]
[1646837486498,0.07392204,2740.2,2740.1,1.82596]
[1646837486900,1.07392204,2740.2,2740.1,1.82596]
[1646837487101,1.474168,2740.2,2740.1,1.82596]
[1646837488005,4.213738,2740.2,2739.7,2.73846]
[1646837488203,0.029168,2739.8,2739.7,2.73846]
[1646837488402,0.474168,2739.8,2738.8,2.8309]
[1646837488605,0.474168,2739.8,2738.6,12.28124259]
[1646837488606,0.029168,2738.9,2738.6,12.28124259]
[1646837488802,0.029168,2738.9,2738.5,11.87900354]
[1646837488803,0.028121,2738.9,2738.5,11.87900354]
[1646837489008,0.028121,2738.9,2738.5,2.75410354]
[1646837489297,0.029168,2738.6,2738.5,2.75410354]
[1646837489689,0.91337,2738.8,2738.5,2.74004]
[1646837489895,0.941371,2738.8,2738.5,2.74004]
[1646837490294,0.91337,2738.8,2738.5,2.74004]
[1646837490491,0.02853,2738.7,2738.5,2.74004]
[1646837490891,0.029168,2738.6,2738.5,2.74004]
[1646837491090,1.82699,2738.7,2738.5,2.74004]
[1646837491893,0.028001,2739.1,2738.5,2.74004]
[1646837492091,3.18537,2739.4,2738.5,3.04004]
[1646837492294,0.028078,2739.1,2738.5,3.04004]
[1646837492496,4.18537,2739.4,2738.5,3.04004]
[1646837492497,0.028001,2739.3,2738.5,3.04004]
[1646837492692,4.18537,2739.4,2738.5,3.04004]
[1646837492897,0.91337,2739.0,2738.5,3.04004]
[1646837493096,0.028531,2738.9,2738.5,3.04004]
[1646837493497,0.91337,2739.0,2738.5,2.74004]
[1646837493498,1.241371,2739.0,2738.5,2.74004]
[1646837493699,0.3,2739.0,2738.5,2.74004]
[1646837493898,1.82678,2739.1,2738.5,2.74004]
[1646837494099,0.91346,2738.7,2738.5,2.74004]
[1646837494498,0.941593,2738.7,2738.5,2.74004]
[1646837495102,0.91346,2738.7,2738.5,2.74004]
[1646837495297,0.028543,2738.6,2738.5,2.74004]
[1646837495498,0.20022715,2738.6,2738.3,0.92839162]
[1646837495700,0.028543,2738.6,2738.3,0.91346]
[1646837496101,0.028681,2738.5,2738.3,0.91346]
[1646837496302,0.91333,2738.9,2738.3,1.8268272]
[1646837496604,0.745,2739.0,2738.4,1.32067251]
[1646837496605,0.3,2739.0,2738.4,1.32067251]
[1646837496855,1.0,2739.3,2738.5,0.09055875]
[1646837497052,0.19945643,2739.2,2738.5,0.09055875]
[1646837497250,0.028001,2739.2,2738.6,1.8264206]
[1646837497449,0.04967055,2739.5,2738.6,1.8264206]
[1646837497657,1.50279997,2739.6,2738.6,1.8264206]
[1646837497658,0.029168,2739.1,2738.6,0.91326]
[1646837497852,0.07045907,2739.2,2738.6,0.91326]
[1646837498053,0.17142304,2739.1,2738.6,0.91326]
[1646837498251,0.028932,2738.9,2738.6,0.91326]